bitfinex-derivatives/quotes_SOLF0:USTF0_20250821
["timestamp","ask_amount","ask_price","bid_price","bid_amount"]
[1755750996995,2.86,188.22,188.15,2.94]
[1755750997192,138.49080761,188.26,188.17,2.94]
[1755750997397,138.49080761,188.26,188.18,4.85574827]
[1755750997398,5.13080761,188.26,188.18,4.85574827]
[1755750997694,2.86,188.33,188.2,2.94]
[1755750997897,2.86,188.33,188.18,4.42437825]
[1755750997898,2.27080761,188.32,188.26,5.3115]
[1755750998191,2.27080761,188.32,188.23,2.94]
[1755750998396,2.27080761,188.32,188.24,4.8550815]
[1755750998593,2.27080761,188.32,188.25,4.8550815]
[1755750998791,2.27080761,188.3,188.26,4.85534107]
[1755750998992,2.27080761,188.3,188.23,2.94]
[1755750999191,2.27080761,188.3,188.24,4.85534092]
[1755750999396,5.13080761,188.3,188.25,7.79534092]
[1755750999700,5.13080761,188.3,188.26,4.85534092]
[1755750999893,5.13080761,188.3,188.25,2.94]
[1755751000088,5.13080761,188.3,188.26,4.85682824]
[1755751000294,2.27080761,188.31,188.24,2.94]
[1755751000487,2.27080761,188.31,188.25,4.8582974]
[1755751000992,495.41080761,188.34,188.26,4.85790953]
[1755751001298,495.41080761,188.34,188.27,4.85903208]
[1755751001487,495.41080761,188.34,188.28,4.85903208]
[1755751001689,495.41080761,188.34,188.24,2.94]
[1755751001894,495.41080761,188.34,188.25,4.85912277]
[1755751002093,495.41080761,188.34,188.26,4.85912277]
[1755751002400,2.86,188.3,188.27,4.85912277]
[1755751002698,2.86,188.3,188.24,2.94]
[1755751002895,2.86,188.3,188.25,7.80036535]
[1755751003096,2.86,188.3,188.26,4.86036535]
[1755751003397,2.86,188.3,188.27,4.86036535]
[1755751003591,2.86,188.3,188.25,2.94]
[1755751003792,2.86,188.3,188.26,4.86059475]
[1755751003995,2.86,188.3,188.27,4.86059475]
[1755751004192,2.86,188.3,188.25,2.94]
[1755751004395,135.47080761,188.31,188.27,2.94]
[1755751004592,135.47080761,188.31,188.28,4.86040338]
[1755751004792,133.2,188.31,188.27,2.94]
[1755751005000,133.2,188.31,188.28,4.86040279]
[1755751005303,133.2,188.31,188.28,2.94]
[1755751005893,359.88,188.34,188.28,2.94]
[1755751005894,135.29080761,188.33,188.28,2.94]
[1755751006099,490.04,188.34,188.29,4.86062724]
[1755751006300,2.27080761,188.36,188.31,2.94]
[1755751006500,2.27080761,188.39,188.32,4.86009362]
[1755751006798,133.08,188.38,188.33,4.85975584]
[1755751006995,133.08,188.37,188.29,2.94]
[1755751007199,133.08,188.37,188.3,4.85987983]
[1755751007401,133.08,188.37,188.31,4.85987983]
[1755751007602,135.94,188.37,188.32,4.85987983]
[1755751007800,135.94,188.37,188.29,2.94]
[1755751008000,135.94,188.37,188.3,4.85949159]
[1755751008196,357.1,188.44,188.31,4.85949159]
[1755751008402,135.69080761,188.41,188.32,7.79949159]
[1755751008698,135.69080761,188.41,188.33,4.85949159]
[1755751008900,135.69080761,188.41,188.34,4.85949159]
[1755751009102,135.69080761,188.41,188.35,4.85949159]
[1755751009305,2.86,188.4,188.36,4.85949159]
[1755751009502,2.86,188.4,188.32,8.2495]
[1755751009807,2.86,188.4,188.33,4.8570441]
[1755751010001,2.86,188.4,188.34,4.8570441]
[1755751010202,2.86,188.4,188.35,4.85559804]
[1755751010399,2.86,188.39,188.32,2.94]
[1755751010602,2.86,188.39,188.33,4.85461516]
[1755751010905,2.86,188.38,188.34,4.85461516]
[1755751011109,2.86,188.38,188.35,4.85461516]
[1755751011309,2.86,188.38,188.32,2.94]
[1755751011512,2.86,188.38,188.34,2.94]
[1755751011710,2.86,188.38,188.35,4.85333844]
[1755751011911,2.86,188.38,188.3,2.94]
[1755751012112,2.86,188.38,188.31,4.85333888]
[1755751012314,2.86,188.38,188.32,10.16293888]
[1755751012605,2.86,188.35,188.29,2.94]
[1755751012797,2.86,188.35,188.3,7.79253237]
[1755751012998,2.27080761,188.37,188.31,7.79253237]
[1755751013207,2.27080761,188.37,188.32,7.79253237]
[1755751013395,2.86,188.36,188.32,2.94]
[1755751015604,2.86,188.36,188.29,5.3106]
[1755751015806,2.86,188.36,188.3,4.85106551]
[1755751016108,3.02,188.35,188.31,4.85106551]
[1755751016413,3.02,188.35,188.32,4.85106551]
[1755751016605,2.27080761,188.37,188.3,5.3103]
[1755751016798,2.27080761,188.37,188.31,4.85064184]
[1755751017003,2.27080761,188.37,188.32,4.85064184]
[1755751017199,5.29080761,188.37,188.3,5.3103]
[1755751017403,5.29080761,188.37,188.31,4.85032702]
[1755751017608,5.29080761,188.37,188.32,4.85032702]
[1755751017810,5.29080761,188.37,188.3,8.1103]
[1755751018004,5.29080761,188.37,188.31,4.85032657]
[1755751018207,5.29080761,188.37,188.32,4.85032657]
[1755751018405,5.29080761,188.37,188.3,8.1103]
[1755751018606,5.29080761,188.37,188.31,4.84999735]
[1755751018806,3.02,188.36,188.32,4.84999735]
[1755751019007,2.27080761,188.35,188.28,2.8]
[1755751019203,2.27080761,188.35,188.29,4.85033131]
[1755751019406,3.02,188.36,188.29,4.85033131]
[1755751019604,3.02,188.36,188.3,4.85050193]
[1755751019918,3.02,188.36,188.28,2.8]
[1755751020109,2.27080761,188.35,188.29,4.85050296]
[1755751020308,3.02,188.32,188.24,2.8]
[1755751020508,3.02,188.32,188.25,4.85076239]
[1755751020709,3.02,188.32,188.26,4.85076239]
[1755751020912,3.02,188.31,188.27,4.85076239]
[1755751021214,3.02,188.31,188.24,2.8]
[1755751021412,3.02,188.31,188.25,4.85074943]
[1755751021609,3.02,188.31,188.26,7.65074943]
[1755751021919,3.02,188.31,188.27,4.85132973]
[1755751022111,3.02,188.31,188.26,2.8]
[1755751022302,2.27080761,188.33,188.27,4.85112403]
[1755751022502,3.02,188.31,188.26,2.8]
[1755751022714,3.02,188.31,188.27,4.85158583]
[1755751022904,3.02,188.31,188.26,2.8]
[1755751023109,3.02,188.31,188.27,4.85158583]
[1755751023311,3.02,188.31,188.26,2.8]
[1755751023507,2.27080761,188.31,188.27,4.85168381]
[1755751023712,2.27080761,188.31,188.22,2.8]
[1755751023713,2.27080761,188.29,188.22,2.8]
[1755751023919,2.27080761,188.29,188.23,4.85196515]
[1755751024119,2.27080761,188.29,188.24,4.85196515]
[1755751024417,3.02,188.28,188.22,2.8]
[1755751024614,2.27080761,188.26,188.23,4.85217081]
[1755751024818,2.27080761,188.26,188.19,2.8]
[1755751024819,5.29080761,188.26,188.19,2.8]
[1755751025017,5.29080761,188.26,188.2,4.85267336]
[1755751025314,2.27080761,188.26,188.21,4.85267336]
[1755751025520,3.02,188.24,188.19,2.8]
[1755751025708,3.02,188.24,188.2,4.85230831]
[1755751025911,3.02,188.24,188.21,4.85230831]
[1755751026117,2.27080761,188.27,188.23,2.8]
[1755751026418,2.27080761,188.27,188.18,2.8]
[1755751026613,2.27080761,188.27,188.23,2.8]
[1755751026816,2.27080761,188.27,188.24,2.8]
[1755751027717,3.02,188.32,188.23,2.8]
[1755751028021,2.27080761,188.3,188.23,8.1121]
[1755751028524,2.27080761,188.3,188.24,4.85175745]
[1755751028821,3.02,188.32,188.26,2.8]
[1755751029020,2.27080761,188.31,188.22,2.27080761]
[1755751029220,2.27080761,188.31,188.28,2.8]
[1755751029620,133.0,188.34,188.28,2.8]
[1755751029621,2.27080761,188.34,188.28,2.8]
[1755751031222,2.27080761,188.34,188.25,2.8]
[1755751031430,2.27080761,188.31,188.26,4.85152123]
[1755751031616,5.29080761,188.31,188.27,4.85152123]
[1755751031817,5.29080761,188.31,188.25,2.8]
[1755751032019,5.29080761,188.31,188.26,7.65210269]
[1755751032321,5.29080761,188.31,188.27,4.85210269]
[1755751032524,5.29080761,188.31,188.26,2.8]
[1755751032725,2.27080761,188.31,188.28,2.8]
[1755751033823,2.27080761,188.31,188.24,2.8]
[1755751034024,2.27080761,188.31,188.25,4.85221048]
[1755751034224,5.29080761,188.31,188.26,7.65221048]
[1755751034531,5.29080761,188.31,188.27,4.85221048]
[1755751034825,5.29080761,188.31,188.26,2.8]
[1755751035027,5.29080761,188.31,188.27,4.85284452]
[1755751035223,5.29080761,188.31,188.26,2.8]
[1755751035427,5.29080761,188.31,188.27,4.85339054]
[1755751035632,5.29080761,188.31,188.26,2.8]
[1755751035827,5.29080761,188.31,188.27,4.85383946]
[1755751036019,5.29080761,188.31,188.26,2.8]
[1755751036222,5.29080761,188.31,188.27,4.85383946]
[1755751036420,5.29080761,188.31,188.26,2.8]
[1755751036624,3.02,188.3,188.27,4.85551736]
[1755751036822,3.02,188.3,188.26,2.8]
[1755751037020,3.02,188.3,188.27,4.85555614]
[1755751037223,3.02,188.3,188.23,2.8]
[1755751037533,3.02,188.3,188.24,10.1693281]
[1755751037732,3.02,188.3,188.25,7.6573281]
[1755751038033,3.02,188.3,188.26,4.8573281]
[1755751038222,3.02,188.3,188.27,4.8573281]
[1755751038425,3.02,188.3,188.26,2.8]
[1755751038426,3.02,188.3,188.28,4.85917821]
[1755751038627,3.02,188.3,188.26,2.8]
[1755751038947,3.02,188.3,188.27,4.8591782]
[1755751039233,3.02,188.3,188.28,4.8591782]
[1755751039433,3.02,188.3,188.26,2.8]
[1755751039633,3.02,188.3,188.27,4.86051622]
[1755751039936,3.02,188.3,188.28,4.86051622]
[1755751040131,3.02,188.3,188.26,2.8]
[1755751040323,3.02,188.3,188.27,4.83323092]
[1755751040528,3.02,188.3,188.28,4.83323092]
[1755751040730,3.02,188.3,188.26,2.8]
[1755751040930,3.02,188.3,188.27,4.83355626]
[1755751041132,3.02,188.3,188.28,4.83355626]
[1755751041334,3.02,188.3,188.26,2.8]
[1755751041631,3.02,188.3,188.27,4.83512827]
[1755751041833,3.02,188.3,188.28,4.83512827]
[1755751042031,3.02,188.3,188.26,2.8]
[1755751042234,3.02,188.3,188.27,4.83771665]
[1755751042430,3.02,188.3,188.28,4.83771665]
[1755751042632,3.02,188.3,188.29,4.83771665]
[1755751043136,3.02,188.3,188.26,2.8]
[1755751043336,3.02,188.3,188.27,4.8378354]
[1755751043537,3.02,188.3,188.28,4.8378354]
[1755751043837,2.27080761,188.31,188.29,4.83807367]
[1755751044037,3.02,188.33,188.27,2.8]
[1755751044237,2.27080761,188.31,188.28,4.83809546]
[1755751044439,5.29080761,188.31,188.27,2.8]
[1755751044639,3.02,188.3,188.28,4.83832776]
[1755751044840,3.02,188.3,188.24,2.8]
[1755751045037,3.02,188.3,188.26,2.8]
[1755751045238,3.02,188.3,188.27,4.83836632]
[1755751045432,2.27080761,188.29,188.21,2.8]
[1755751045641,2.27080761,188.27,188.22,7.63890954]
[1755751045941,5.28080761,188.27,188.23,4.83890954]
[1755751046142,5.28080761,188.27,188.24,4.83890954]
[1755751046336,5.28080761,188.27,188.22,2.8]
[1755751046536,3.01,188.26,188.23,4.83855398]
[1755751046737,2.27080761,188.24,188.18,2.83]
[1755751046942,2.27080761,188.24,188.19,4.83911735]
[1755751047146,5.28080761,188.24,188.2,4.83911735]
[1755751047335,5.28080761,188.24,188.21,4.83911735]
[1755751047532,5.28080761,188.24,188.19,2.83]
[1755751047735,2.27080761,188.22,188.2,4.83737713]
[1755751047937,2.27080761,188.22,188.21,4.83737713]
[1755751048543,2.27080761,188.22,188.16,8.1442]
[1755751048746,2.27080761,188.22,188.18,2.83]
[1755751049040,134.71080761,188.28,188.2,2.83]
[1755751049241,2.27080761,188.23,188.2,2.83]
[1755751050235,5.28080761,188.23,188.2,2.83]
[1755751050441,2.27080761,188.21,188.13,2.83]
[1755751050639,5.28080761,188.19,188.15,2.83]
[1755751050835,2.27080761,188.18,188.16,4.83235704]
[1755751051035,2.27080761,188.18,188.15,2.83]
[1755751051240,2.27080761,188.18,188.16,4.83252653]
[1755751051441,2.27080761,188.18,188.15,2.83]
[1755751051632,2.27080761,188.18,188.16,4.83004818]
[1755751051833,2.27080761,188.18,188.15,2.83]
[1755751052039,2.27080761,188.18,188.16,4.83004818]
[1755751052345,2.27080761,188.18,188.17,4.98851553]
[1755751052940,5.28080761,188.18,188.1,2.83]
[1755751053140,5.28080761,188.18,188.11,9.81508737]
[1755751053341,2.27080761,188.16,188.12,9.81508737]
[1755751053547,2.27080761,188.16,188.13,9.81508737]
[1755751053846,2.27080761,188.16,188.14,7.81676503]
[1755751054143,2.27080761,188.16,188.15,4.98676503]
[1755751054635,5.28080761,188.16,188.08,2.83]
[1755751054841,2.27080761,188.11,188.04,2.83]
[1755751055038,2.27080761,188.11,188.05,4.8247866]
[1755751055343,2.27080761,188.11,188.07,2.83]
[1755751055748,5.28080761,188.11,188.07,2.83]
[1755751056840,2.27080761,188.13,188.02,2.27080761]
[1755751057044,2.27080761,188.13,188.03,4.81837903]
[1755751057238,2.27080761,188.13,188.05,2.83]
[1755751057436,2.27080761,188.13,188.06,4.81837903]
[1755751057642,2.27080761,188.13,188.07,7.64837903]
[1755751057844,2.27080761,188.13,188.09,2.83]
[1755751058243,2.27080761,188.11,188.03,2.83]
[1755751058443,2.27080761,188.11,188.05,2.83]
[1755751058642,2.27080761,188.11,188.07,2.83]
[1755751059249,2.27080761,188.14,188.08,4.81479543]
[1755751059444,3.01,188.17,188.09,7.64303783]
[1755751059445,5.28080761,188.17,188.09,7.64303783]
[1755751059645,5.28080761,188.17,188.09,2.83]
[1755751060041,2.27080761,188.17,188.09,2.83]
[1755751060643,2.27080761,188.17,188.11,2.83]
[1755751062859,2.27080761,188.14,188.07,2.83]
[1755751063159,2.27080761,188.14,188.08,4.81201063]
[1755751063361,2.27080761,188.14,188.07,2.83]
[1755751064063,2.27080761,188.14,188.08,4.81179635]
[1755751064267,2.27080761,188.14,188.1,2.83]
[1755751064466,3.01,188.16,188.06,2.83]
[1755751064666,3.01,188.16,188.08,2.83]
[1755751064860,3.01,188.16,188.09,4.81118054]
[1755751065061,3.01,188.16,188.08,2.83]
[1755751065261,3.01,188.16,188.09,4.81111561]
[1755751065461,3.01,188.16,188.08,2.83]
[1755751065759,3.01,188.16,188.09,4.81042816]
[1755751065962,3.01,188.16,188.1,4.8101732]
[1755751066265,3.01,188.16,188.08,2.83]
[1755751066465,3.01,188.16,188.09,4.80982563]
[1755751066760,3.01,188.16,188.1,4.80982563]
[1755751066959,2.27080761,188.17,188.06,2.83]
[1755751067161,2.27080761,188.17,188.08,2.83]
[1755751067359,2.27080761,188.17,188.09,4.80982519]
[1755751067565,2.27080761,188.17,188.1,4.80982519]
[1755751067767,2.27080761,188.17,188.08,2.83]
[1755751068065,2.27080761,188.17,188.09,4.80955229]
[1755751068265,2.27080761,188.17,188.1,4.80955229]
[1755751068465,2.27080761,188.17,188.08,2.83]
[1755751068766,2.27080761,188.17,188.09,4.80942021]
[1755751068961,2.27080761,188.17,188.1,4.80942021]
[1755751069160,2.27080761,188.17,188.08,2.83]
[1755751069362,2.27080761,188.17,188.09,4.80942021]
[1755751069563,2.27080761,188.17,188.08,2.83]
[1755751069864,2.27080761,188.17,188.09,4.80892874]
[1755751070065,2.27080761,188.17,188.08,2.83]
[1755751070367,2.27080761,188.17,188.09,4.80892874]
[1755751070566,2.27080761,188.17,188.08,2.83]
[1755751070871,2.27080761,188.11,188.01,2.83]
[1755751071064,2.27080761,188.11,188.03,2.83]
[1755751071257,2.27080761,188.11,188.04,4.81414495]
[1755751071455,2.27080761,188.11,188.05,4.81414495]
[1755751071666,3.01,188.1,188.06,4.81414495]
[1755751071867,3.01,188.1,188.03,2.83]
[1755751072067,3.01,188.1,188.04,4.8130903]
[1755751072266,3.01,188.1,188.05,4.8130903]
[1755751072467,2.27080761,188.11,188.07,2.83]
[1755751072862,5.28080761,188.11,188.07,2.83]
[1755751073069,3.01,188.1,187.99,6.7180137]
[1755751073264,3.01,188.1,188.03,2.83]
[1755751073466,2.27080761,188.09,188.04,4.81212894]
[1755751073665,2.27080761,188.09,188.05,7.64212894]
[1755751073864,2.27080761,188.09,188.06,4.81212894]
[1755751074066,2.27080761,188.09,188.05,2.83]
[1755751074261,2.27080761,188.09,188.06,4.81135577]
[1755751074469,2.27080761,188.11,188.07,4.81106631]
[1755751074665,2.27080761,188.11,188.09,2.83]
[1755751074970,5.28080761,188.14,188.09,2.83]
[1755751075364,5.28080761,188.14,188.1,2.83]
[1755751075869,3.01,188.13,188.07,2.83]
[1755751076065,3.01,188.13,188.08,2.94]
[1755751076767,2.27080761,188.12,188.03,2.94]
[1755751076975,2.27080761,188.12,188.05,2.94]
[1755751077162,2.27080761,188.12,188.06,4.81247033]
[1755751077368,2.27080761,188.12,188.05,2.94]
[1755751077566,2.27080761,188.12,188.06,4.81298563]
[1755751077761,2.27080761,188.12,188.05,2.94]
[1755751077968,2.27080761,188.12,188.06,4.81298563]
[1755751078170,2.27080761,188.12,188.05,2.94]
[1755751078365,2.27080761,188.12,188.06,4.81285801]
[1755751078570,2.27080761,188.12,188.07,4.81372023]
[1755751078867,2.94,188.14,188.1,2.94]
[1755751079074,5.21080761,188.15,188.11,2.94]
[1755751079275,2.27080761,188.15,188.11,2.94]
[1755751079667,5.21080761,188.15,188.11,2.94]
[1755751080363,2.27080761,188.15,188.11,2.94]
[1755751080567,2.94,188.14,188.05,2.94]
[1755751080773,357.12,188.26,188.09,2.94]
[1755751080774,2.94,188.22,188.09,2.94]
[1755751081069,2.94,188.22,188.11,2.94]
[1755751081070,2.27080761,188.21,188.11,2.94]
[1755751081263,2.27080761,188.21,188.12,4.81498266]
[1755751081462,2.27080761,188.15,188.08,2.94]
[1755751081666,2.27080761,188.15,188.09,4.81739144]
[1755751081870,5.21080761,188.11,188.05,2.94]
[1755751082070,5.21080761,188.11,188.06,4.81805765]
[1755751082271,5.21080761,188.11,188.07,4.81805765]
[1755751082569,5.21080761,188.11,188.08,4.92850999]
[1755751082768,5.21080761,188.11,188.09,4.92850999]
[1755751082974,5.21080761,188.11,188.1,4.92850999]
[1755751083172,2.27080761,188.11,188.02,2.94]
[1755751083371,5.21080761,188.08,188.04,2.94]
[1755751083575,2.94,188.09,188.05,9.74859318]
[1755751083776,2.94,188.08,188.06,4.92884026]
[1755751084074,5.21080761,188.08,188.07,4.92884026]
[1755751085379,2.27080761,188.08,188.07,4.92884026]
[1755751087872,5.21080761,188.08,188.07,4.92884026]
[1755751088675,5.21080761,188.08,188.0,2.94]
[1755751088877,2.27080761,188.07,188.02,2.94]
[1755751089072,2.27080761,188.07,188.04,2.94]
[1755751089477,5.21080761,188.07,188.01,2.94]
[1755751089679,5.21080761,188.07,188.02,7.77550305]
[1755751089878,2.27080761,188.04,188.03,4.83550305]
[1755751090178,5.21080761,188.04,188.03,4.83550305]
[1755751091181,5.21080761,188.02,187.98,2.94]
[1755751091980,2.27080761,188.02,187.99,2.94]
[1755751092183,5.21080761,188.02,187.93,4.44720609]
[1755751092381,5.21080761,188.02,187.96,2.94]
[1755751093878,5.21080761,188.02,187.93,4.44720609]
[1755751093879,2.27080761,188.0,187.93,4.44720609]
[1755751094080,2.27080761,187.98,187.92,2.94]
[1755751095177,2.27080761,187.98,187.89,4.44720609]
[1755751095383,2.27080761,187.94,187.87,2.94]
[1755751097683,5.21080761,187.94,187.87,2.94]
[1755751097885,5.21080761,187.9,187.83,2.94]
[1755751098184,2.27080761,187.92,187.83,2.94]
[1755751098586,2.27080761,187.92,187.84,2.94]
[1755751099181,189.78360076,187.99,187.85,2.94]
[1755751099388,2.27080761,187.97,187.88,2.94]
[1755751100384,2.27080761,187.95,187.88,2.94]
[1755751101291,0.03498587,187.93,187.88,2.94]
[1755751101881,0.03498587,187.93,187.9,2.94]
[1755751102587,189.78360076,187.99,187.92,2.94]
[1755751103184,189.78360076,187.99,187.92,8.261]
[1755751103389,189.78360076,187.99,187.93,2.94]
[1755751104190,189.78360076,187.99,187.94,0.03569605]
[1755751104490,189.78360076,187.99,187.96,2.94]
[1755751104690,2.94,187.97,187.94,0.03569605]
[1755751104891,5.21080761,187.95,187.85,2.94]
[1755751105393,2.27080761,187.92,187.85,2.94]
[1755751106689,3.02,187.97,187.85,5.21080761]
[1755751106888,2.27080761,187.96,187.86,2.75]
[1755751107090,2.27080761,187.96,187.87,2.75]
[1755751107280,3.02,187.97,187.88,2.75]
[1755751107795,2.27080761,187.95,187.88,2.75]
[1755751107998,3.02,187.92,187.88,2.75]
[1755751109094,3.02,187.92,187.81,2.75]
[1755751109593,3.02,187.92,187.82,5.3237]
[1755751109789,3.02,187.92,187.81,2.75]
[1755751110186,6.72374706,187.92,187.81,2.75]
[1755751111790,6.72374706,187.92,187.84,2.75]
[1755751112892,6.72374706,187.92,187.8,2.75]
[1755751112893,3.02,187.91,187.8,2.75]
[1755751113790,3.02,187.88,187.8,2.75]
[1755751114699,3.02,187.88,187.77,2.75]
[1755751115296,3.02,187.88,187.77,8.0752]
[1755751115998,3.02,187.88,187.78,5.325]
[1755751116187,3.02,187.88,187.79,2.75]
[1755751116792,3.02,187.88,187.81,8.0741]
[1755751116994,3.02,187.92,187.81,2.75]
[1755751117895,3.02,187.92,187.81,8.074]
[1755751119698,3.02,187.92,187.81,2.75]
[1755751120393,3.02,187.9,187.81,2.75]
[1755751124599,3.02,187.9,187.81,8.0741]
[1755751124994,3.02,187.9,187.82,2.75]
[1755751126800,3.70374706,187.88,187.79,2.75]
[1755751126988,3.02,187.9,187.79,2.75]
[1755751127293,3.02,187.9,187.81,5.324]
[1755751127494,3.02,187.9,187.82,2.75]
[1755751128502,3.02,187.9,187.78,2.75]
[1755751129003,132.72,187.94,187.78,2.75]
[1755751129004,3.02,187.87,187.78,2.75]
[1755751129599,3.02,187.87,187.78,8.0748]
[1755751130396,5.29407617,187.87,187.78,2.75]
[1755751130600,2.27407617,187.85,187.78,2.75]
[1755751130904,3.02,187.82,187.78,2.75]
[1755751131297,3.02,187.82,187.74,4.44720609]
[1755751131500,3.02,187.82,187.75,2.75]
[1755751131894,2.27407617,187.83,187.75,8.0756]
[1755751132099,2.27407617,187.83,187.75,2.75]
[1755751132800,0.03690178,187.81,187.77,0.03682888]
[1755751133103,0.03690178,187.81,187.78,2.75]
[1755751133301,0.03690178,187.81,187.77,0.03682888]
[1755751135005,3.05690178,187.81,187.77,0.03682888]
[1755751135202,0.03690178,187.81,187.77,0.03682888]
[1755751135399,3.02,187.8,187.77,0.03682888]
[1755751135804,3.02,187.78,187.77,0.03682888]
[1755751136199,2.27407617,187.78,187.77,0.03682888]
[1755751136399,2.31097795,187.81,187.77,0.03682888]
[1755751136601,5.16097795,187.81,187.77,0.03682888]
[1755751137001,5.16097795,187.81,187.77,3.05682888]
[1755751138404,2.85,187.8,187.77,0.03682888]
[1755751140606,2.85,187.79,187.77,0.03682888]
[1755751140805,2.85,187.8,187.77,0.03682888]
[1755751141006,2.85,187.78,187.77,0.03682888]
[1755751141904,2.31097795,187.81,187.77,0.03682888]
[1755751142105,2.85,187.8,187.77,0.03682888]
[1755751142509,2.85,187.79,187.77,0.03682888]
[1755751142714,2.85,187.78,187.77,0.03682888]
[1755751143104,5.12407617,187.78,187.77,0.03682888]
[1755751145413,2.27407617,187.8,187.77,0.03682888]
[1755751145611,0.03690178,187.81,187.77,0.03682888]
[1755751145800,2.88690178,187.81,187.77,0.03682888]
[1755751146005,2.85,187.8,187.77,0.03682888]
[1755751147014,0.03690178,187.81,187.78,3.02]
[1755751147604,0.03690178,187.81,187.79,3.02]
[1755751148817,0.03690178,187.81,187.78,3.02]
[1755751149011,0.03690178,187.81,187.77,0.03682888]
[1755751149315,0.03690178,187.81,187.78,3.02]
[1755751149720,2.88690178,187.81,187.77,0.03682888]
[1755751150013,5.12407617,187.78,187.77,0.03682888]
[1755751150409,5.12407617,187.78,187.7,3.02]
[1755751150609,2.27407617,187.76,187.7,3.02]
[1755751150806,2.27407617,187.76,187.67,4.44720609]
[1755751151010,2.27407617,187.72,187.64,4.44720609]
[1755751151212,2.27407617,187.72,187.65,3.02]
[1755751151813,0.0337937,187.7,187.64,3.02]
[1755751156022,0.0337937,187.7,187.68,3.02]
[1755751156324,0.0337937,187.7,187.63,2.27407617]
[1755751156516,0.0337937,187.7,187.69,3.02]
[1755751159226,0.0337937,187.7,187.66,3.02]
[1755751160125,0.0337937,187.7,187.67,3.02]
[1755751160322,0.0337937,187.7,187.68,3.02]
[1755751160517,0.0337937,187.7,187.69,3.02]
[1755751160717,0.0337937,187.7,187.64,5.3289]
[1755751161029,0.0337937,187.7,187.63,5.29407617]
[1755751161030,0.0337937,187.7,187.67,3.02]
[1755751161226,0.0337937,187.7,187.68,3.02]
[1755751161527,0.0337937,187.7,187.64,3.02]
[1755751168434,5.15407617,187.69,187.64,3.02]
[1755751168631,2.88,187.68,187.61,5.3298]
[1755751168838,2.27407617,187.67,187.59,2.97]
[1755751169530,0.04032941,187.65,187.59,2.97]
[1755751171240,0.04032941,187.65,187.59,8.3003]
[1755751171443,0.04032941,187.65,187.6,2.97]
[1755751171636,0.04032941,187.65,187.59,2.97]
[1755751171830,0.04032941,187.65,187.62,5.3295]
[1755751172136,0.04032941,187.65,187.64,2.97]
[1755751176638,0.04032941,187.65,187.59,5.3302]
[1755751176840,0.04032941,187.65,187.62,2.97]
[1755751177846,2.88,187.63,187.59,2.97]
[1755751178046,2.27407617,187.62,187.55,2.97]
[1755751178745,0.03578089,187.6,187.55,2.97]
[1755751178949,0.03578089,187.6,187.56,2.97]
[1755751179141,0.03578089,187.6,187.53,144.23059727]
[1755751179350,2.27407617,187.58,187.53,144.23059727]
[1755751179546,5.15407617,187.58,187.53,144.23059727]
[1755751179748,2.27407617,187.58,187.53,141.26059727]
[1755751180052,2.88,187.56,187.48,7.41720609]
[1755751180247,2.88,187.56,187.48,2.97]
[1755751180551,5.15407617,187.56,187.48,7.41720609]
[1755751180744,0.03925902,187.54,187.48,7.41720609]
[1755751180945,0.03925902,187.54,187.48,2.97]
[1755751181851,0.03925902,187.54,187.47,4.44720609]
[1755751181852,2.27407617,187.53,187.47,2.97]
[1755751183342,2.27407617,187.53,187.43,2.97]
[1755751183546,2.27407617,187.51,187.43,2.97]
[1755751183748,5.15407617,187.51,187.43,2.97]
[1755751184253,0.03364923,187.49,187.43,2.97]
[1755751184753,2.3077254,187.49,187.43,2.97]
[1755751185743,0.03364923,187.49,187.43,2.97]